fUSD/lending_fUSD_20250828
["ID","MTS","AMOUNT","RATE_DAILY","PERIOD"]
[381781671,1756345839713,-400.0,0.00016931,2]
[381781672,1756345839723,-400.0,0.00016931,2]
[381781673,1756345839732,-400.0,0.00016931,2]
[381781674,1756345839741,-495.04464688,0.00016931,2]
[381781675,1756345839751,-400.0,0.00016931,2]
[381781676,1756345839762,-400.0,0.00016931,2]
[381781677,1756345839772,-400.0,0.00016931,2]
[381781678,1756345839781,-400.0,0.00016931,2]
[381781679,1756345839791,-400.0,0.00016931,2]
[381781680,1756345839800,-403.15297614,0.00016931,2]
[381781681,1756345839811,-406.68034247,0.00016931,2]
[381781682,1756345839820,-401.29569196,0.00016931,2]
[381781683,1756345839830,-400.0,0.00016931,2]
[381781684,1756345839841,-400.0,0.00016931,2]
[381781685,1756345839851,-380.55383324,0.00016931,2]
[381781686,1756345839860,-401.92111107,0.00016931,2]
[381781687,1756345839870,-584.88,0.00016931,2]
[381781688,1756345839879,-400.0,0.00016931,2]
[381781689,1756345839888,-400.0,0.00016931,2]
[381781690,1756345839898,-292.14976865,0.00016931,2]
[381781691,1756345839907,-400.0,0.00016931,2]
[381781692,1756345839916,-400.0,0.00016931,2]
[381781693,1756345839926,-400.0,0.00016931,2]
[381781694,1756345839936,-400.0,0.00016931,2]
[381781695,1756345839948,-400.0,0.00016931,2]
[381781696,1756345839958,-400.0,0.00016931,2]
[381781697,1756345839968,-400.0,0.00016931,2]
[381781698,1756345839978,-400.0,0.00016931,2]
[381781699,1756345839987,-400.0,0.00016931,2]
[381781700,1756345839996,-400.0,0.00016931,2]
[381781701,1756345840006,-400.0,0.00016931,2]
[381781702,1756345840015,-400.0,0.00016931,2]
[381781703,1756345840025,-300.0,0.00016931,2]
[381781704,1756345840034,-400.0,0.00016931,2]
[381781705,1756345840043,-400.0,0.00016931,2]
[381781706,1756345840052,-400.0,0.00016931,2]
[381781707,1756345840061,-400.0,0.00016931,2]
[381781708,1756345840070,-675.97,0.00016931,2]
[381781709,1756345840080,-400.0,0.00016931,2]
[381781710,1756345840089,-483.29,0.00016931,2]
[381781711,1756345840098,-400.0,0.00016931,2]
[381781712,1756345840108,-400.0,0.00016931,2]
[381781713,1756345840117,-400.0,0.00016931,2]
[381781714,1756345840127,-400.0,0.00016931,2]
[381781715,1756345840136,-319.26889754,0.00016931,2]
[381781716,1756345840146,-400.0,0.00016931,2]
[381781717,1756345840155,-400.0,0.00016931,2]
[381781718,1756345840164,-400.0,0.00016931,2]
[381781719,1756345840174,-400.0,0.00016931,2]
[381781720,1756345840185,-400.0,0.00016931,2]
[381781721,1756345840195,-400.0,0.00016931,2]
[381781722,1756345840204,-400.0,0.00016931,2]
[381781723,1756345840213,-400.0,0.00016931,2]
[381781724,1756345840223,-400.0,0.00016931,2]
[381781725,1756345840232,-400.0,0.00016931,2]
[381781726,1756345840241,-400.0,0.00016931,2]
[381781727,1756345840251,-400.0,0.00016931,2]
[381781728,1756345840260,-181.149453,0.00016931,2]
[381781729,1756345840269,-438.64187997,0.00016931,2]
[381781730,1756345840279,-400.0,0.00016931,2]
[381781731,1756345840288,-400.0,0.00016931,2]
[381781732,1756345840297,-400.0,0.00016931,2]
[381781733,1756345840306,-304.10455087,0.00016931,2]
[381781734,1756345840316,-400.0,0.00016931,2]
[381781735,1756345840325,-400.0,0.00016931,2]
[381781736,1756345840334,-404.77161931,0.00016931,2]
[381781737,1756345840343,-400.0,0.00016931,2]
[381781738,1756345840356,-400.0,0.00016931,2]
[381781739,1756345840365,-403.93580702,0.00016931,2]
[381781740,1756345840375,-400.0,0.00016931,2]
[381781741,1756345840390,-400.0,0.00016931,2]
[381781742,1756345840399,-404.9268311,0.00016931,2]
[381781743,1756345840411,-402.78953149,0.00016931,2]
[381781744,1756345840420,-400.0,0.00016931,2]
[381781745,1756345840431,-400.0,0.00016931,2]
[381781746,1756345840440,-400.0,0.00016931,2]
[381781747,1756345840449,-400.0,0.00016931,2]
[381781748,1756345840459,-400.0,0.00016931,2]
[381781749,1756345840469,-400.0,0.00016931,2]
[381781750,1756345840479,-400.0,0.00016931,2]
[381781751,1756345840488,-400.0,0.00016931,2]
[381781752,1756345840498,-271.24871373,0.00016931,2]
[381781753,1756345840507,-536.4319326,0.00016931,2]
[381781754,1756345840517,-409.16402901,0.00016931,2]
[381781755,1756345840527,-400.0,0.00016931,2]
[381781756,1756345840536,-400.0,0.00016931,2]
[381781757,1756345840546,-400.0,0.00016931,2]
[381781758,1756345840555,-400.0,0.00016931,2]
[381781759,1756345840565,-419.77337688,0.00016931,2]
[381781760,1756345840575,-400.0,0.00016931,2]
[381781761,1756345840584,-400.0,0.00016931,2]
[381781762,1756345840593,-400.0,0.00016931,2]
[381781763,1756345840603,-400.0,0.00016931,2]
[381781764,1756345840612,-400.0,0.00016931,2]
[381781765,1756345840621,-400.0,0.00016931,2]
[381781766,1756345840631,-400.0,0.00016931,2]
[381781767,1756345840640,-402.47768615,0.00016931,2]
[381781768,1756345840657,-400.0,0.00016931,2]
[381781769,1756345840668,-402.19539187,0.00016931,2]
[381781770,1756345840683,-400.0,0.00016931,2]
[381781771,1756345840705,-403.7321393,0.00016931,2]
[381781772,1756345840719,-403.9093733,0.00016931,2]
[381781773,1756345840731,-400.0,0.00016931,2]
[381781774,1756345840742,-400.0,0.00016931,2]
[381781775,1756345840754,-400.0,0.00016931,2]
[381781776,1756345840770,-404.69756507,0.00016931,2]
[381781777,1756345840780,-403.38644409,0.00016931,2]
[381781778,1756345840791,-400.0,0.00016931,2]
[381781779,1756345840801,-404.06430882,0.00016931,2]
[381781780,1756345840811,-400.0,0.00016931,2]
[381781781,1756345840823,-404.65348204,0.00016931,2]
[381781782,1756345840836,-400.0,0.00016931,2]
[381781783,1756345840847,-400.0,0.00016931,2]
[381781784,1756345840857,-400.0,0.00016931,2]
[381781785,1756345840869,-408.02069189,0.00016931,2]
[381781786,1756345840881,-400.0,0.00016931,2]
[381781787,1756345840891,-210.52714305,0.00016931,2]
[381781788,1756345840903,-400.0,0.00016931,2]
[381781789,1756345840914,-400.0,0.00016931,2]
[381781790,1756345840925,-400.0,0.00016931,2]
[381781791,1756345840936,-407.67461927,0.00016931,2]
[381781792,1756345840948,-400.0,0.00016931,2]
[381781793,1756345840958,-400.0,0.00016931,2]
[381781794,1756345840969,-400.0,0.00016931,2]
[381781795,1756345840980,-403.38388108,0.00016931,2]
[381781796,1756345840991,-400.0,0.00016931,2]
[381781797,1756345841002,-404.20320827,0.00016931,2]
[381781798,1756345841012,-400.0,0.00016931,2]
[381781799,1756345841022,-400.0,0.00016931,2]
[381781800,1756345841032,-400.0,0.00016931,2]
[381781801,1756345841042,-400.0,0.00016931,2]
[381781802,1756345841052,-412.72226489,0.00016931,2]
[381781803,1756345841064,-400.0,0.00016931,2]
[381781804,1756345841075,-400.0,0.00016931,2]
[381781805,1756345841086,-400.0,0.00016931,2]
[381781806,1756345841097,-400.0,0.00016931,2]
[381781807,1756345841109,-400.0,0.00016931,2]
[381781808,1756345841119,-354.84847418,0.00016931,2]
[381781809,1756345841130,-400.0,0.00016931,2]
[381781810,1756345841142,-409.20918572,0.00016931,2]
[381781811,1756345841153,-400.0,0.00016931,2]
[381781812,1756345841164,-406.7360465,0.00016931,2]
[381781813,1756345841176,-407.2901302,0.00016931,2]
[381781814,1756345841187,-406.31009378,0.00016931,2]
[381781815,1756345841199,-400.0,0.00016931,2]
[381781816,1756345841210,-400.0,0.00016931,2]
[381781817,1756345841221,-400.0,0.00016931,2]
[381781818,1756345841233,-400.0,0.00016931,2]
[381781819,1756345841243,-400.0,0.00016931,2]
[381781820,1756345841254,-400.0,0.00016931,2]
[381781821,1756345841266,-404.47212354,0.00016931,2]
[381781822,1756345841277,-400.0,0.00016931,2]
[381781823,1756345841288,-400.0,0.00016931,2]
[381781824,1756345841298,-400.0,0.00016931,2]
[381781825,1756345841309,-400.0,0.00016931,2]
[381781826,1756345841320,-400.0,0.00016931,2]
[381781827,1756345841332,-400.0,0.00016931,2]
[381781828,1756345841343,-416.6959727,0.00016931,2]
[381781829,1756345841354,-400.0,0.00016931,2]
[381781830,1756345841365,-413.33523499,0.00016931,2]
[381781831,1756345841375,-408.4,0.00016931,2]
[381781832,1756345841385,-401.03631963,0.00016931,2]
[381781833,1756345841396,-402.38732082,0.00016931,2]
[381781834,1756345841406,-898.08,0.00016931,2]
[381781835,1756345841416,-400.0,0.00016931,2]
[381781836,1756345841428,-461.45764641,0.00016931,2]
[381781837,1756345841439,-409.53487943,0.00016931,2]
[381781838,1756345841452,-400.0,0.00016931,2]
[381781839,1756345841464,-400.0,0.00016931,2]
[381781840,1756345841475,-218.61860673,0.00016931,2]
[381781841,1756345841486,-400.0,0.00016931,2]
[381781842,1756345841497,-400.0,0.00016931,2]
[381781843,1756345841508,-416.89186298,0.00016931,2]
[381781844,1756345841519,-401.91469138,0.00016931,2]
[381781845,1756345841531,-400.0,0.00016931,2]
[381781846,1756345841542,-402.53055489,0.00016931,2]
[381781847,1756345841551,-437.45366648,0.00016931,2]
[381781848,1756345841561,-400.0,0.00016931,2]
[381781849,1756345841572,-400.0,0.00016931,2]
[381781850,1756345841582,-400.0,0.00016931,2]
[381781851,1756345841593,-439.5857343,0.00016931,2]
[381781852,1756345841603,-405.4705045,0.00016931,2]
[381781853,1756345841613,-400.0,0.00016931,2]
[381781854,1756345841624,-400.87740409,0.00016967,2]
[381781855,1756345841636,-500.0,0.00016967,2]
[381781856,1756345841649,-400.0,0.00016967,2]
[381781857,1756345841659,-400.0,0.00016967,2]
[381781858,1756345841669,-400.0,0.00016967,2]
[381781859,1756345841679,-400.0,0.00016967,2]
[381781860,1756345841689,-400.0,0.00016967,2]
[381781861,1756345841699,-400.0,0.00016967,2]
[381781862,1756345841709,-400.0,0.00016967,2]
[381781863,1756345841719,-500.0,0.00016968,2]
[381781864,1756345841729,-400.0,0.00016968,2]
[381781865,1756345841740,-374.77020664,0.00016968,2]
[381781866,1756345841751,-400.0,0.00016968,2]
[381781867,1756345841764,-400.0,0.00016968,2]
[381781868,1756345841775,-400.0,0.00016968,2]
[381781869,1756345841788,-400.0,0.00016968,2]
[381781870,1756345841800,-1652.71,0.00016968,2]
[381781871,1756345841811,-400.0,0.00016968,2]
[381781872,1756345841821,-400.0,0.00016968,2]
[381781873,1756345841831,-400.0,0.00016968,2]
[381781874,1756345841843,-444.12,0.00016968,2]
[381781875,1756345841853,-463.26,0.00016968,2]
[381781876,1756345841863,-400.0,0.00016968,2]
[381781877,1756345841873,-400.0,0.00016968,2]
[381781878,1756345841883,-400.0,0.00016968,2]
[381781879,1756345841894,-400.0,0.00016968,2]
[381781880,1756345841905,-400.0,0.00016968,2]
[381781881,1756345841915,-5662.54,0.00016969,2]
[381781882,1756345841928,-2404.55,0.00016969,2]
[381781883,1756345841945,-400.0,0.00016969,2]
[381781884,1756345841955,-447.04,0.00016969,2]
[381781885,1756345841965,-400.0,0.00016969,2]
[381781886,1756345841975,-1621.43,0.00016969,2]
[381781887,1756345841986,-479.03,0.00016969,2]
[381781888,1756345841997,-400.0,0.00016969,2]
[381781889,1756345842007,-504.05,0.00016969,2]
[381781890,1756345842017,-400.0,0.00016969,2]
[381781891,1756345842027,-400.0,0.00016969,2]
[381781892,1756345842038,-702.546648,0.00017027,2]
[381781893,1756345842050,-522.37945477,0.00017027,2]
[381781894,1756345842061,-161.72570665,0.00017027,2]
[381781895,1756345842071,-328.77894486,0.00017027,2]
[381781896,1756345842083,-1000.0,0.00017027,2]
[381781897,1756345842095,-257.91778498,0.00017027,2]
[381781898,1756345842112,-1000.0,0.00017027,2]
[381781899,1756345842123,-1000.0,0.00017027,2]
[381781900,1756345842134,-1000.0,0.00017027,2]
[381781901,1756345842146,-1000.0,0.00017027,2]
[381781902,1756345842157,-1000.0,0.00017027,2]
[381781903,1756345842168,-1000.0,0.00017027,2]
[381781905,1756345842178,-1000.0,0.00017027,2]
[381781907,1756345842189,-1000.0,0.00017027,2]
[381781908,1756345842200,-1000.0,0.00017027,2]
[381781909,1756345842211,-152.84600658,0.00017027,2]
[381781910,1756345842222,-1000.0,0.00017027,2]
[381781911,1756345842232,-1067.55024293,0.00017027,2]
[381781913,1756345842243,-1853.36030075,0.00017105,2]
[381781914,1756345842254,-367.74226739,0.00017141,2]
[381781915,1756345842264,-151.0,0.00017184,2]
[381781916,1756345842275,-151.0,0.00017185,2]
[381781917,1756345842288,-151.0,0.00017186,2]
[381781918,1756345842299,-151.0,0.00017187,2]
[381781919,1756345842310,-400.0,0.00017202,2]
[381781920,1756345842320,-413.62,0.00017202,2]
[381781921,1756345842331,-408.68196977,0.00017202,2]
[381781923,1756345842343,-400.0,0.00017202,2]
[381781924,1756345842354,-400.0,0.00017202,2]
[381781925,1756345842366,-400.0,0.00017202,2]
[381781926,1756345842376,-441.82816657,0.00017202,2]
[381781927,1756345842388,-1534.91,0.00017202,2]
[381781928,1756345842398,-400.83556866,0.00017202,2]
[381781929,1756345842411,-525.10453217,0.00017202,2]
[381781930,1756345842421,-400.0,0.00017202,2]
[381781931,1756345842432,-400.0,0.00017202,2]
[381781932,1756345842442,-400.0,0.00017202,2]
[381781934,1756345842453,-400.0,0.00017202,2]
[381781935,1756345842464,-400.0,0.00017202,2]
[381781936,1756345842476,-401.97501861,0.00017203,2]
[381781937,1756345842486,-402.80455343,0.00017203,2]
[381781938,1756345842496,-403.68215369,0.00017203,2]
[381781939,1756345842507,-458.73502946,0.00017203,2]
[381781940,1756345842518,-400.0,0.00017203,2]
[381781941,1756345842530,-403.41170081,0.00017203,2]
[381781942,1756345842540,-400.0,0.00017203,2]
[381781943,1756345842551,-403.24707975,0.00017203,2]
[381781944,1756345842560,-402.04857512,0.00017203,2]
[381781945,1756345842571,-433.22085677,0.00017203,2]
[381781946,1756345842582,-400.0,0.00017203,2]
[381781947,1756345842592,-400.0,0.00017203,2]
[381781948,1756345842602,-400.0,0.00017203,2]
[381781949,1756345842613,-400.0,0.00017203,2]
[381781950,1756345842623,-400.0,0.00017203,2]
[381781951,1756345842633,-468.47174229,0.00017203,2]
[381781952,1756345842644,-400.0,0.00017203,2]
[381781953,1756345842654,-473.84012976,0.00017203,2]
[381781954,1756345842664,-400.0,0.00017203,2]
[381781955,1756345842675,-402.13919296,0.00017203,2]
[381781956,1756345842685,-402.60917865,0.00017203,2]
[381781957,1756345842696,-402.91487931,0.00017203,2]
[381781958,1756345842706,-400.0,0.00017203,2]
[381781959,1756345842725,-406.97416919,0.00017203,2]
[381781960,1756345842736,-402.87861934,0.00017203,2]
[381781961,1756345842747,-400.0,0.00017203,2]
[381781962,1756345842760,-402.57723316,0.00017203,2]
[381781963,1756345842771,-402.88295714,0.00017203,2]
[381781964,1756345842782,-402.98516596,0.00017203,2]
[381781965,1756345842792,-400.0,0.00017203,2]
[381781966,1756345842802,-400.0,0.00017203,2]
[381781968,1756345842813,-404.16940919,0.00017203,2]
[381781970,1756345842823,-402.81729901,0.00017203,2]
[381781972,1756345842834,-402.49062269,0.00017203,2]
[381781974,1756345842845,-531.66028234,0.00017203,2]
[381781976,1756345842855,-506.03911693,0.00017203,2]
[381781978,1756345842866,-400.0,0.00017203,2]
[381781980,1756345842876,-400.0,0.00017203,2]
[381781982,1756345842886,-454.84079038,0.00017203,2]
[381781984,1756345842896,-400.52007604,0.00017203,2]
[381781986,1756345842908,-402.77268644,0.00017203,2]
[381781988,1756345842918,-402.82310151,0.00017203,2]
[381781990,1756345842928,-402.30186997,0.00017203,2]
[381781992,1756345842938,-400.0,0.00017203,2]
[381781994,1756345842948,-467.48052695,0.00017203,2]
[381781996,1756345842958,-264.68917962,0.00017203,2]
[381781999,1756345842969,-400.0,0.00017203,2]
[381782001,1756345842980,-400.0,0.00017203,2]
[381782003,1756345842991,-405.04266734,0.00017203,2]
[381782005,1756345843000,-401.29398594,0.00017203,2]
[381782007,1756345843010,-402.6976594,0.00017203,2]
[381782009,1756345843020,-400.0,0.00017203,2]
[381782011,1756345843030,-401.8369928,0.00017203,2]
[381782013,1756345843040,-403.00958216,0.00017203,2]
[381782015,1756345843049,-402.59170439,0.00017203,2]
[381782017,1756345843060,-452.18707987,0.00017203,2]
[381782019,1756345843070,-402.30906584,0.00017203,2]
[381782021,1756345843080,-400.94375322,0.00017203,2]
[381782023,1756345843090,-402.85717175,0.00017203,2]
[381782026,1756345843102,-400.0,0.00017203,2]
[381782028,1756345843112,-400.0,0.00017203,2]
[381782030,1756345843121,-400.0,0.00017203,2]
[381782032,1756345843132,-403.62839763,0.00017203,2]
[381782034,1756345843142,-404.30152653,0.00017203,2]
[381782036,1756345843153,-402.79398295,0.00017203,2]
[381782038,1756345843162,-400.0,0.00017203,2]
[381782040,1756345843172,-400.0,0.00017203,2]
[381782042,1756345843182,-402.04364497,0.00017203,2]
[381782044,1756345843192,-400.0,0.00017203,2]
[381782046,1756345843202,-400.0,0.00017203,2]
[381782048,1756345843212,-400.0,0.00017203,2]
[381782051,1756345843223,-400.0,0.00017203,2]
[381782053,1756345843232,-400.0,0.00017203,2]
[381782055,1756345843242,-402.66482793,0.00017203,2]
[381782057,1756345843251,-400.0,0.00017203,2]
[381782059,1756345843261,-400.0,0.00017203,2]
[381782061,1756345843271,-451.93447362,0.00017203,2]
[381782063,1756345843281,-544.06695056,0.00017203,2]
[381782065,1756345843292,-400.0,0.00017203,2]
[381782067,1756345843301,-400.0,0.00017203,2]
[381782069,1756345843311,-400.0,0.00017203,2]
[381782071,1756345843321,-400.0,0.00017203,2]
[381782073,1756345843330,-400.0,0.00017203,2]
[381782075,1756345843340,-402.75994265,0.00017203,2]
[381782077,1756345843350,-512.16953925,0.00017203,2]
[381782079,1756345843360,-402.81833588,0.00017203,2]
[381782081,1756345843370,-262.42198152,0.00017203,2]
[381782083,1756345843379,-400.0,0.00017203,2]
[381782085,1756345843389,-402.66895912,0.00017203,2]
[381782087,1756345843399,-408.32233324,0.00017203,2]
[381782090,1756345843409,-400.0,0.00017203,2]
[381782092,1756345843420,-401.9506918,0.00017203,2]
[381782094,1756345843430,-400.0,0.00017203,2]
[381782096,1756345843440,-400.67969088,0.00017203,2]
[381782098,1756345843450,-404.92406609,0.00017203,2]
[381782100,1756345843460,-407.11084413,0.00017203,2]
[381782102,1756345843470,-400.0,0.00017203,2]
[381782104,1756345843480,-400.0,0.00017203,2]
[381782106,1756345843490,-431.17084144,0.00017203,2]
[381782108,1756345843500,-400.0,0.00017203,2]
[381782110,1756345843510,-401.0825966,0.00017203,2]
[381782112,1756345843521,-403.14704792,0.00017203,2]
[381782113,1756345843531,-400.0,0.00017203,2]
[381782114,1756345843541,-402.75718001,0.00017203,2]
[381782115,1756345843551,-200.98841359,0.00017203,2]
[381782116,1756345843562,-401.68536127,0.00017203,2]
[381782117,1756345843574,-400.0,0.00017203,2]
[381782118,1756345843584,-402.78534654,0.00017203,2]
[381782119,1756345843594,-400.0,0.00017203,2]
[381782120,1756345843604,-400.13694287,0.00017203,2]
[381782121,1756345843615,-402.50188222,0.00017203,2]
[381782122,1756345843624,-400.0,0.00017203,2]
[381782123,1756345843636,-402.65391673,0.00017203,2]
[381782124,1756345843647,-400.0,0.00017203,2]
[381782125,1756345843657,-401.9837937,0.00017203,2]
[381782127,1756345843667,-400.0,0.00017203,2]
[381782128,1756345843679,-400.0,0.00017203,2]
[381782129,1756345843689,-401.94872008,0.00017203,2]
[381782130,1756345843699,-421.07750077,0.00017203,2]
[381782131,1756345843709,-400.0,0.00017203,2]
[381782133,1756345843719,-400.0,0.00017203,2]
[381782135,1756345843729,-400.0,0.00017203,2]
[381782137,1756345843739,-400.0,0.00017203,2]
[381782139,1756345843749,-403.05452373,0.00017203,2]
[381782141,1756345843759,-417.71097519,0.00017203,2]
[381782143,1756345843772,-400.0,0.00017203,2]
[381782145,1756345843782,-552.82,0.00017203,2]
[381782147,1756345843792,-404.41322501,0.00017203,2]
[381782149,1756345843803,-400.0,0.00017203,2]
[381782151,1756345843813,-400.0,0.00017203,2]
[381782212,1756345844381,-402.99321594,0.00017203,2]
[381782215,1756345844397,-418.62543464,0.00017203,2]
[381782217,1756345844407,-400.0,0.00017203,2]
[381782219,1756345844417,-404.01638381,0.00017203,2]
[381782221,1756345844427,-401.95814519,0.00017203,2]
[381782223,1756345844437,-535.43813083,0.00017203,2]
[381782225,1756345844446,-400.0,0.00017203,2]
[381782227,1756345844456,-400.0,0.00017203,2]
[381782229,1756345844465,-402.57501682,0.00017203,2]
[381782231,1756345844475,-400.0,0.00017203,2]
[381782233,1756345844484,-400.0,0.00017203,2]
[381782235,1756345844494,-401.59783134,0.00017203,2]
[381782237,1756345844503,-400.65610296,0.00017203,2]
[381782239,1756345844513,-400.0,0.00017203,2]
[381782241,1756345844523,-400.9751327,0.00017203,2]
[381782243,1756345844533,-400.0,0.00017203,2]
[381782245,1756345844542,-400.0,0.00017203,2]
[381782247,1756345844552,-400.0,0.00017203,2]
[381782249,1756345844563,-498.82119806,0.00017203,2]
[381782251,1756345844573,-400.0,0.00017203,2]
[381782253,1756345844582,-400.0,0.00017203,2]
[381782255,1756345844591,-400.0,0.00017203,2]
[381782257,1756345844601,-400.0,0.00017203,2]
[381782259,1756345844618,-400.0,0.00017203,2]
[381782261,1756345844628,-476.59005782,0.00017203,2]
[381782263,1756345844638,-400.0,0.00017203,2]
[381782265,1756345844648,-400.0,0.00017203,2]
[381782267,1756345844659,-233.885936,0.00017203,2]
[381782269,1756345844676,-400.0,0.00017203,2]
[381782271,1756345844688,-340.206017,0.00017203,2]
[381782273,1756345844698,-400.0,0.00017203,2]
[381782275,1756345844708,-400.0,0.00017203,2]
[381782277,1756345844717,-503.10676077,0.00017203,2]
[381782279,1756345844727,-171.56488,0.00017203,2]
[381782280,1756345844742,-400.0,0.00017203,2]
[381782282,1756345844752,-607.93,0.00017203,2]
[381782284,1756345844764,-400.0,0.00017203,2]
[381782286,1756345844774,-404.43211851,0.00017203,2]
[381782288,1756345844784,-407.27352391,0.00017203,2]
[381782290,1756345844798,-400.0,0.00017203,2]
[381782292,1756345844807,-430.173731,0.00017204,2]
[381782294,1756345844817,-500.0,0.00017204,2]
[381782296,1756345844826,-400.0,0.00017204,2]
[381782298,1756345844837,-400.0,0.00017204,2]
[381782300,1756345844847,-400.0,0.00017204,2]
[381782302,1756345844856,-400.0,0.00017204,2]
[381782304,1756345844865,-400.0,0.00017204,2]
[381782306,1756345844874,-400.0,0.00017204,2]
[381782308,1756345844884,-400.0,0.00017204,2]
[381782310,1756345844893,-400.0,0.00017204,2]
[381782312,1756345844903,-400.0,0.00017204,2]
[381782314,1756345844912,-400.0,0.00017204,2]
[381782316,1756345844922,-400.0,0.00017204,2]
[381782318,1756345844932,-400.0,0.00017204,2]
[381782320,1756345844942,-400.0,0.00017204,2]
[381782322,1756345844951,-410.22812442,0.00017204,2]
[381782324,1756345844961,-400.0,0.00017204,2]
[381782326,1756345844971,-400.0,0.00017204,2]
[381782328,1756345844981,-400.0,0.00017204,2]
[381782330,1756345844992,-400.0,0.00017204,2]
[381782332,1756345845001,-400.0,0.00017204,2]
[381782334,1756345845012,-400.0,0.00017204,2]
[381782336,1756345845021,-512.47891073,0.00017204,2]
[381782338,1756345845031,-431.01,0.00017204,2]
[381782340,1756345845040,-216.74761443,0.00017204,2]
[381782342,1756345845050,-400.0,0.00017204,2]
[381782344,1756345845059,-400.0,0.00017204,2]
[381782346,1756345845069,-400.0,0.00017204,2]
[381782348,1756345845078,-400.0,0.00017204,2]
[381782350,1756345845088,-400.0,0.00017204,2]
[381782352,1756345845097,-400.0,0.00017204,2]
[381782354,1756345845107,-400.0,0.00017204,2]
[381782356,1756345845117,-400.0,0.00017204,2]
[381782357,1756345845127,-400.0,0.00017204,2]
[381782359,1756345845137,-400.0,0.00017204,2]
[381782362,1756345845146,-400.0,0.00017204,2]
[381782363,1756345845156,-501.97183543,0.00017204,2]
[381782365,1756345845166,-400.0,0.00017204,2]
[381782367,1756345845176,-400.0,0.00017204,2]
[381782370,1756345845187,-400.0,0.00017204,2]
[381782372,1756345845197,-400.0,0.00017204,2]
[381782374,1756345845207,-400.0,0.00017204,2]
[381782376,1756345845217,-400.0,0.00017204,2]
[381782378,1756345845226,-440.73190848,0.00017204,2]
[381782380,1756345845235,-400.0,0.00017204,2]
[381782382,1756345845245,-400.0,0.00017204,2]
[381782384,1756345845254,-400.0,0.00017204,2]
[381782386,1756345845263,-400.0,0.00017204,2]
[381782388,1756345845273,-400.0,0.00017204,2]
[381782390,1756345845283,-400.0,0.00017204,2]
[381782392,1756345845292,-400.0,0.00017204,2]
[381782394,1756345845302,-1031.43620257,0.00017204,2]
[381782396,1756345845312,-400.0,0.00017204,2]
[381782398,1756345845321,-400.0,0.00017204,2]
[381782400,1756345845331,-400.0,0.00017204,2]
[381782402,1756345845340,-433.83,0.00017204,2]
[381782404,1756345845350,-400.0,0.00017204,2]
[381782406,1756345845360,-475.6,0.00017204,2]
[381782409,1756345845371,-400.0,0.00017204,2]
[381782412,1756345845380,-400.0,0.00017204,2]
[381782415,1756345845390,-400.0,0.00017204,2]
[381782418,1756345845400,-400.0,0.00017204,2]
[381782421,1756345845409,-400.0,0.00017204,2]
[381782424,1756345845420,-400.76200228,0.00017204,2]
[381782427,1756345845430,-403.25799432,0.00017204,2]
[381782430,1756345845439,-400.0,0.00017204,2]
[381782433,1756345845449,-430.93504509,0.00017204,2]
[381782436,1756345845459,-400.0,0.00017204,2]
[381782439,1756345845469,-404.42346867,0.00017204,2]
[381782442,1756345845479,-400.0,0.00017204,2]